bitfinex-derivatives/quotes_SOLF0:USTF0_20250428
["timestamp","ask_amount","ask_price","bid_price","bid_amount"]
[1745829922755,6.5909,151.68,151.65,6.5917]
[1745829924866,6.5909,151.68,151.66,6.5915]
[1745829925164,6.5905,151.69,151.66,6.5915]
[1745829925862,6.5907,151.68,151.66,6.5915]
[1745829926466,6.5904,151.69,151.66,6.5915]
[1745829926971,11.29940757,151.7,151.66,6.5915]
[1745829927173,6.5909,151.68,151.65,6.5918]
[1745829927472,6.5909,151.68,151.62,6.1672]
[1745829927473,11.29940757,151.7,151.62,6.1672]
[1745829927762,17.30710757,151.7,151.62,6.1672]
[1745829927974,6.5916,151.66,151.62,6.1672]
[1745829928265,6.5916,151.66,151.61,34.57940757]
[1745829928572,17.30710757,151.7,151.61,34.57940757]
[1745829929063,6.5911,151.68,151.63,6.5927]
[1745829929270,17.30710757,151.7,151.63,6.5927]
[1745829929767,17.30710757,151.7,151.64,6.5924]
[1745829930973,6.5909,151.68,151.65,6.5919]
[1745829931269,6.5904,151.69,151.65,6.5919]
[1745829931673,34.57940757,151.7,151.65,6.5919]
[1745829932265,6.5904,151.69,151.65,6.5919]
[1745829932472,34.57940757,151.7,151.65,6.5919]
[1745829932670,23.28,151.7,151.65,6.5919]
[1745829932871,23.28,151.7,151.64,6.5923]
[1745829933575,23.28,151.7,151.65,6.5919]
[1745829933977,6.5907,151.69,151.65,6.5919]
[1745829934376,23.28,151.7,151.65,6.5919]
[1745829934675,6.5905,151.69,151.65,6.5919]
[1745829934878,34.57940757,151.7,151.61,34.57940757]
[1745829935177,6.5914,151.67,151.61,34.57940757]
[1745829935479,6.5914,151.67,151.64,6.5923]
[1745829936783,6.5909,151.68,151.65,6.5919]
[1745829937083,6.5909,151.68,151.61,34.57940757]
[1745829937484,6.5909,151.68,151.64,6.5922]
[1745829938879,6.5909,151.68,151.65,6.5919]
[1745829941480,34.57940757,151.7,151.61,23.28]
[1745829941687,11.29940757,151.68,151.59,11.29940757]
[1745829942093,6.5908,151.68,151.65,6.5918]
[1745829942586,11.29940757,151.71,151.67,6.5911]
[1745829942790,23.3,151.7,151.67,6.5911]
[1745829944290,6.5904,151.69,151.67,6.5911]
[1745829949393,29.89,151.7,151.67,6.5911]
[1745829949692,23.3,151.7,151.67,6.5911]
[1745829950292,6.5903,151.69,151.67,6.5911]
[1745829951891,29.89,151.7,151.68,6.5904]
[1745829952097,5.9597,151.74,151.67,11.29940757]
[1745829952299,25.2091,151.74,151.67,11.29940757]
[1745829952596,6.5887,151.73,151.71,6.5893]
[1745829952797,25.2091,151.74,151.67,11.29940757]
[1745829953096,25.2091,151.74,151.69,6.5899]
[1745829953398,6.5895,151.71,151.68,6.5904]
[1745829953597,11.29940757,151.73,151.63,40.27850757]
[1745829953798,15.25930757,151.73,151.63,40.27850757]
[1745829954096,15.25930757,151.73,151.67,6.5908]
[1745829954400,6.5899,151.7,151.67,6.5908]
[1745829954594,15.25930757,151.73,151.66,6.5913]
[1745829954999,6.5905,151.69,151.66,6.5913]
[1745829955598,6.5905,151.69,151.67,6.591]
[1745829959902,6.5905,151.69,151.66,6.5915]
[1745829960092,6.5907,151.68,151.66,6.5915]
[1745829960293,34.55940757,151.71,151.63,40.27850757]
[1745829960497,11.29940757,151.69,151.6,23.24]
[1745829960796,6.5922,151.65,151.6,23.24]
[1745829961701,6.5918,151.66,151.6,23.24]
[1745829962807,6.5918,151.66,151.63,6.5927]
[1745829963502,34.55940757,151.67,151.6,23.24]
[1745829964004,6.5931,151.63,151.6,29.8341]
[1745829965101,6.5933,151.62,151.6,6.5941]
[1745829965405,38.68660757,151.67,151.6,6.5941]
[1745829965602,6.5931,151.63,151.6,6.5941]
[1745829968710,6.5931,151.63,151.61,6.5937]
[1745829969005,6.5931,151.63,151.57,40.50290757]
[1745829969206,6.5937,151.62,151.59,6.5943]
[1745829969505,23.26,151.63,151.57,27.1911]
[1745829969705,23.26,151.63,151.57,3.9311]
[1745829970412,6.5934,151.62,151.59,6.5943]
[1745829970710,23.26,151.63,151.59,6.5943]
[1745829970907,6.5936,151.62,151.58,6.5948]
[1745829971103,6.5936,151.62,151.57,3.9311]
[1745829971509,6.5936,151.62,151.59,6.5943]
[1745829974306,34.55940757,151.63,151.54,23.26]
[1745829974511,11.29940757,151.61,151.54,23.26]
[1745829974808,6.5944,151.6,151.57,6.5952]
[1745829975610,6.5944,151.6,151.58,6.595]
[1745829976304,11.29940757,151.59,151.49,1.14817381]
[1745829976509,23.26,151.58,151.5,11.29940757]
[1745829977208,6.5955,151.57,151.54,6.5966]
[1745829977509,23.26,151.58,151.5,11.29940757]
[1745829977709,11.29940757,151.59,151.5,11.29940757]
[1745829977910,23.26,151.59,151.52,11.29940757]
[1745829978111,29.8548,151.59,151.56,6.5958]
[1745829979007,6.5944,151.6,151.52,11.29940757]
[1745829979312,11.29940757,151.65,151.56,11.29940757]
[1745829979612,6.5932,151.63,151.56,11.29940757]
[1745829980512,6.5932,151.63,151.6,6.5941]
[1745829980713,6.5934,151.62,151.56,11.29940757]
[1745829981214,6.5934,151.62,151.59,6.5942]
[1745829981415,6.593,151.63,151.56,11.29940757]
[1745829981812,6.593,151.63,151.6,6.5941]
[1745829982315,11.29940757,151.63,151.56,6.5958]
[1745829982613,11.29940757,151.61,151.53,34.55940757]
[1745829982809,6.5944,151.6,151.53,34.55940757]
[1745829983414,6.5944,151.6,151.57,6.5954]
[1745829986613,6.5939,151.61,151.58,6.5947]
[1745829986818,11.29940757,151.63,151.55,11.29940757]
[1745829987317,6.5939,151.61,151.58,6.5948]
[1745829990418,6.5934,151.62,151.59,6.5944]
[1745829991422,23.26,151.64,151.57,11.29940757]
[1745829991721,23.26,151.64,151.57,34.55940757]
[1745829992119,3.9684,151.66,151.57,34.55940757]
[1745829992420,23.26,151.66,151.59,11.29940757]
[1745829992930,6.5924,151.64,151.61,6.5937]
[1745829995031,6.5929,151.63,151.61,6.5937]
[1745829996531,6.5929,151.63,151.6,6.5939]
[1745829996732,6.5926,151.64,151.58,5.7287]
[1745829996928,11.29940757,151.64,151.55,11.29940757]
[1745829997136,11.29940757,151.64,151.57,6.5952]
[1745829997428,11.29940757,151.6,151.53,362.9652]
[1745829997632,11.29940757,151.58,151.51,23.26]
[1745829998231,11.29940757,151.58,151.52,6.5973]
[1745829998430,6.5968,151.55,151.52,6.5973]
[1745829999035,6.5968,151.54,151.48,497.84]
[1745829999232,34.55940757,151.56,151.48,23.26]
[1745829999532,41.15550757,151.56,151.52,6.5974]
[1745830000429,6.5964,151.55,151.51,6.5979]
[1745830001736,6.5964,151.55,151.52,6.5976]
[1745830002537,41.15550757,151.56,151.52,6.5976]
[1745830002837,41.15550757,151.56,151.48,23.26]
[1745830003136,41.15550757,151.56,151.52,6.5974]
[1745830003337,6.5963,151.55,151.52,6.5974]
[1745830003637,34.55940757,151.56,151.53,6.5971]
[1745830003840,41.15550757,151.56,151.53,6.5971]
[1745830004540,5.9064,151.59,151.51,11.29940757]
[1745830004837,1.8757,151.59,151.51,11.29940757]
[1745830005044,6.5951,151.58,151.55,6.5961]
[1745830005535,1.8757,151.59,151.55,6.5961]
[1745830005735,34.55940757,151.6,151.56,6.5957]
[1745830006133,6.5946,151.59,151.56,6.5957]
[1745830006333,34.55940757,151.6,151.56,6.5957]
[1745830007240,6.5949,151.59,151.56,6.5957]
[1745830007437,474.7,151.62,151.53,11.29940757]
[1745830007638,23.26,151.63,151.55,11.29940757]
[1745830007835,6.5936,151.62,151.55,11.29940757]
[1745830008338,23.26,151.63,151.55,11.29940757]
[1745830008539,29.8532,151.63,151.59,6.5943]
[1745830009044,29.8532,151.63,151.57,11.29940757]
[1745830009543,6.5933,151.62,151.57,11.29940757]
[1745830010239,6.5933,151.62,151.58,6.5948]
[1745830010438,6.5933,151.62,151.57,11.29940757]
[1745830010939,6.5933,151.62,151.59,6.5945]
[1745830011241,23.26,151.63,151.57,6.5952]
[1745830011439,34.55940757,151.63,151.57,6.5952]
[1745830013638,34.55940757,151.63,151.56,29.8557]
[1745830013938,11.29940757,151.59,151.53,29.3641]
[1745830014441,11.29940757,151.59,151.56,6.5955]
[1745830014843,17.89400757,151.59,151.56,6.5955]
[1745830016445,6.595,151.58,151.55,6.5961]
[1745830017542,11.29940757,151.59,151.53,23.26]
[1745830017742,11.29940757,151.59,151.49,11.29940757]
[1745830017743,34.55940757,151.59,151.5,23.26]
[1745830017943,34.55940757,151.59,151.52,6.5972]
[1745830018143,34.55940757,151.59,151.5,23.26]
[1745830018646,6.5961,151.56,151.53,6.5971]
[1745830020648,34.55940757,151.59,151.5,23.26]
[1745830021149,6.596,151.56,151.53,6.597]
[1745830021844,11.29940757,151.57,151.5,23.26]
[1745830022048,6.5966,151.55,151.5,23.26]
[1745830022448,6.5966,151.55,151.52,6.5974]
[1745830022649,6.5961,151.56,151.5,23.26]
[1745830023152,11.29940757,151.57,151.5,23.26]
[1745830023452,6.5963,151.55,151.5,23.26]
[1745830023649,11.29940757,151.57,151.53,6.5972]
[1745830024151,6.5961,151.56,151.54,6.5967]
[1745830024351,6.5961,151.56,151.5,23.26]
[1745830024752,6.5961,151.56,151.53,6.597]
[1745830027651,6.5961,151.56,151.54,6.5967]
[1745830027950,6.5961,151.56,151.5,23.26]
[1745830028252,6.5961,151.56,151.53,6.5968]
[1745830029651,11.29940757,151.58,151.51,6.5978]
[1745830029850,11.29940757,151.56,151.51,6.5978]
[1745830030252,6.5968,151.54,151.51,6.5978]
[1745830030854,11.29940757,151.52,151.45,5.7968]
[1745830031053,11.29940757,151.5,151.45,5.7968]
[1745830031753,6.5992,151.49,151.45,5.7968]
[1745830031948,11.29940757,151.5,151.41,34.55940757]
[1745830032353,11.29940757,151.48,151.43,6.6014]
[1745830032749,11.29940757,151.48,151.41,23.26]
[1745830033053,11.29940757,151.48,151.42,6.6017]
[1745830033247,23.26,151.47,151.42,6.6017]
[1745830033448,23.26,151.47,151.41,29.8622]
[1745830033449,6.6007,151.45,151.41,29.8622]
[1745830033643,6.6007,151.45,151.4,6.0402]
[1745830034154,6.6007,151.45,151.41,6.6022]
[1745830034556,6.6007,151.45,151.4,6.0402]
[1745830034855,6.6007,151.45,151.42,6.6017]
[1745830035257,17.89980757,151.46,151.42,6.6017]
[1745830035457,17.89980757,151.46,151.43,6.6015]
[1745830037156,17.89980757,151.46,151.42,6.6018]
[1745830037355,17.89980757,151.46,151.4,6.0402]
[1745830038252,17.89980757,151.46,151.43,6.6013]
[1745830038958,23.26,151.47,151.44,6.601]
[1745830039151,23.26,151.47,151.4,6.0402]
[1745830039356,23.26,151.47,151.41,11.29940757]
[1745830041157,23.26,151.47,151.45,6.6004]
[1745830043051,23.26,151.47,151.41,11.29940757]
[1745830043052,23.26,151.47,151.44,6.6009]
[1745830043456,29.8599,151.47,151.44,6.6009]
[1745830045358,29.8599,151.47,151.43,6.6014]
[1745830045359,6.6003,151.46,151.43,6.6014]
[1745830046060,6.6009,151.45,151.42,6.6018]
[1745830046661,6.6011,151.44,151.41,6.6023]
[1745830047556,6.6009,151.45,151.42,6.602]
[1745830049860,11.29940757,151.46,151.38,23.28]
[1745830050359,6.6014,151.44,151.41,6.6023]
[1745830051660,6.6014,151.44,151.42,6.6019]
[1745830051861,6.6014,151.44,151.38,23.28]
[1745830052255,6.6014,151.44,151.41,6.6022]
[1745830052760,6.6014,151.44,151.38,23.28]
[1745830053963,11.29940757,151.44,151.38,23.28]
[1745830054455,5.971,151.45,151.38,23.28]
[1745830054650,6.6013,151.44,151.41,6.6023]
[1745830055255,6.6016,151.43,151.38,23.28]
[1745830055964,6.6013,151.44,151.38,23.28]
[1745830056661,6.6013,151.44,151.41,6.6024]
[1745830056962,23.28,151.43,151.36,5.796]
[1745830057463,11.29940757,151.42,151.35,23.28]
[1745830057761,11.29940757,151.4,151.31,23.28]
[1745830057962,11.29940757,151.38,151.33,6.6055]
[1745830058165,11.29940757,151.36,151.31,23.28]
[1745830058363,11.29940757,151.36,151.28,23.28]
[1745830058554,6.605,151.35,151.32,6.6061]
[1745830058865,11.29940757,151.36,151.32,6.6061]
[1745830059060,11.29940757,151.36,151.28,23.28]
[1745830059361,23.28,151.37,151.29,11.29940757]
[1745830059563,23.28,151.37,151.34,6.6052]
[1745830059758,23.28,151.37,151.29,11.29940757]
[1745830059959,23.28,151.37,151.3,5.9052]
[1745830060263,23.28,151.37,151.35,6.6048]
[1745830060863,23.28,151.37,151.34,6.6053]
[1745830061160,6.6047,151.36,151.3,5.9052]
[1745830062062,41.18370757,151.37,151.33,6.6056]
[1745830062263,34.57940757,151.37,151.33,6.6056]
[1745830062563,6.6049,151.36,151.33,6.6056]
[1745830063165,34.57940757,151.37,151.34,6.6053]
[1745830063366,23.28,151.37,151.34,6.6053]
[1745830064567,29.8844,151.37,151.34,6.6053]
[1745830065268,41.18380757,151.37,151.34,6.6053]
[1745830066668,34.57940757,151.37,151.35,6.605]
[1745830067166,23.28,151.37,151.3,5.9052]
[1745830068070,29.8842,151.37,151.34,6.6051]
[1745830068673,23.28,151.37,151.35,6.605]
[1745830069769,6.6039,151.38,151.35,6.605]
[1745830069973,23.3,151.39,151.33,34.59940757]
[1745830070569,23.3,151.39,151.36,6.6042]
[1745830070767,23.3,151.39,151.33,34.59940757]
[1745830071360,23.3,151.39,151.37,6.6039]
[1745830072171,23.3,151.39,151.36,6.6044]
[1745830072373,11.29940757,151.37,151.33,23.3]
[1745830072569,11.29940757,151.37,151.34,6.6053]
[1745830072770,11.29940757,151.37,151.3,29.2052]
[1745830073271,17.90370757,151.37,151.34,6.6052]
[1745830073573,11.29940757,151.37,151.3,29.2052]
[1745830074069,11.29940757,151.37,151.34,6.6052]
[1745830074370,11.29940757,151.37,151.3,29.2052]
[1745830075371,11.29940757,151.37,151.35,6.6049]
[1745830076573,17.90370757,151.37,151.34,6.6054]
[1745830076768,34.59940757,151.39,151.3,29.2052]
[1745830077068,23.3,151.39,151.33,11.29940757]
[1745830077372,34.59940757,151.39,151.3,40.50460757]
[1745830077771,6.6038,151.38,151.35,6.6048]
[1745830078072,34.59940757,151.39,151.3,40.50460757]
[1745830078271,6.6043,151.37,151.34,6.6053]
[1745830078872,6.6039,151.38,151.35,6.605]
[1745830079574,34.59940757,151.39,151.3,40.50460757]
[1745830079773,23.3,151.39,151.3,40.50460757]
[1745830080377,29.9035,151.39,151.36,6.6045]
[1745830080674,23.3,151.39,151.32,11.29940757]
[1745830081075,477.3147,151.42,151.34,11.29940757]
[1745830081277,500.6147,151.42,151.34,34.59940757]
[1745830081575,23.3,151.42,151.34,34.59940757]
[1745830081769,23.3,151.42,151.34,23.3]
[1745830081975,23.3,151.42,151.4,6.6026]
[1745830083278,23.3,151.42,151.39,6.6031]
[1745830083470,29.9022,151.42,151.39,6.6031]
[1745830084877,11.29940757,151.41,151.34,23.3]
[1745830085478,6.6036,151.39,151.34,23.3]
[1745830086378,6.6036,151.39,151.36,6.6045]
[1745830087078,6.6037,151.38,151.36,6.6045]
[1745830087377,11.29940757,151.4,151.34,23.3]
[1745830087773,11.29940757,151.4,151.31,23.3]
[1745830088076,6.6039,151.38,151.35,6.6048]
[1745830089178,11.29940757,151.4,151.34,6.6054]
[1745830089378,11.29940757,151.38,151.34,6.6054]
[1745830089580,34.59940757,151.38,151.31,23.3]
[1745830089778,6.6044,151.37,151.34,6.6051]
[1745830092477,11.29940757,151.36,151.3,5.9052]
[1745830093481,34.59940757,151.38,151.3,5.9052]
[1745830093681,6.6047,151.36,151.33,6.6057]
[1745830094382,6.6043,151.37,151.33,6.6057]
[1745830094583,34.59940757,151.38,151.32,6.6062]
[1745830095184,6.6049,151.36,151.32,6.6062]
[1745830095482,11.29940757,151.36,151.32,6.6062]
[1745830095683,17.90420757,151.36,151.33,6.6059]
[1745830095983,17.90420757,151.36,151.28,34.59940757]
[1745830095984,11.29940757,151.36,151.28,34.59940757]
[1745830096181,11.29940757,151.36,151.33,6.6057]
[1745830096382,11.29940757,151.36,151.28,34.59940757]
[1745830096878,17.90420757,151.36,151.33,6.6059]
[1745830097886,11.29940757,151.38,151.28,34.59940757]
[1745830098185,23.3,151.37,151.3,11.29940757]
[1745830098382,23.3,151.37,151.35,6.6048]
[1745830100689,23.3,151.37,151.36,6.6046]
[1745830100892,23.3,151.37,151.3,11.29940757]
[1745830101390,23.3,151.37,151.35,6.605]
[1745830102091,23.3,151.37,151.36,6.6046]
[1745830102291,34.59940757,151.4,151.3,11.29940757]
[1745830102497,34.59940757,151.4,151.32,23.3]
[1745830102791,6.6033,151.39,151.36,6.6043]
[1745830103092,41.20250757,151.4,151.37,6.6042]
[1745830103393,34.59940757,151.4,151.32,23.3]
[1745830104591,6.6037,151.38,151.35,6.6047]
[1745830104794,34.59940757,151.4,151.32,23.3]
[1745830105189,6.6035,151.39,151.32,23.3]
[1745830105695,11.29940757,151.42,151.32,34.59940757]
[1745830105897,11.29940757,151.43,151.34,11.29940757]
[1745830106095,11.29940757,151.41,151.33,5.9175]
[1745830106291,17.90300757,151.39,151.35,6.6048]
[1745830107197,11.29940757,151.39,151.36,6.6046]
[1745830107597,17.90280757,151.39,151.36,6.6046]
[1745830108598,17.90280757,151.39,151.37,6.6041]
[1745830110602,11.29940757,151.39,151.37,6.6041]
[1745830111503,17.90270757,151.39,151.37,6.6041]
[1745830112403,6.6042,151.37,151.35,6.6048]
[1745830112598,6.6042,151.37,151.32,23.3]
[1745830112902,6.6042,151.37,151.34,6.6053]
[1745830113096,6.6048,151.36,151.29,27.3957]
[1745830113292,11.29940757,151.37,151.29,27.3957]
[1745830113801,6.6048,151.36,151.29,27.3957]
[1745830114000,6.6048,151.36,151.33,6.6057]
[1745830114204,6.6052,151.35,151.33,6.6057]
[1745830115303,6.6052,151.35,151.32,6.6061]
[1745830115604,11.29940757,151.35,151.29,27.3957]
[1745830115804,11.29940757,151.35,151.3,6.6072]
[1745830116402,6.6062,151.33,151.3,6.6072]
[1745830116801,6.6066,151.32,151.29,6.6075]
[1745830117001,11.29940757,151.33,151.26,23.3]
[1745830117803,17.90560757,151.33,151.26,23.3]
[1745830118206,11.29940757,151.35,151.26,34.59940757]
[1745830118806,11.29940757,151.35,151.32,6.6063]
[1745830119008,23.3,151.36,151.32,6.6063]
[1745830119198,23.3,151.36,151.26,34.59940757]
[1745830119402,11.29940757,151.37,151.26,34.59940757]
[1745830119607,23.3,151.36,151.28,11.29940757]
[1745830119906,23.3,151.36,151.29,2.0491]
[1745830120204,29.9049,151.36,151.33,6.6056]
[1745830121305,23.3,151.36,151.33,6.6056]
[1745830122209,29.9046,151.36,151.33,6.6056]
[1745830123802,6.6051,151.35,151.33,6.6056]
[1745830124104,6.6051,151.35,151.3,23.3]
[1745830124507,6.6051,151.35,151.33,6.6058]
[1745830124801,23.3,151.36,151.29,2.0491]
[1745830125008,11.29940757,151.35,151.29,2.0491]
[1745830125308,11.29940757,151.35,151.27,25.2872]
[1745830125309,6.6057,151.34,151.31,6.6065]
[1745830126508,6.606,151.33,151.31,6.6065]
[1745830127410,6.6063,151.32,151.27,25.2872]
[1745830127908,11.29940757,151.33,151.27,25.2872]
[1745830128209,6.6064,151.32,151.29,6.6074]
[1745830129307,11.29940757,151.33,151.27,25.2872]
[1745830129709,6.6067,151.32,151.29,6.6075]
[1745830129915,11.29940757,151.33,151.25,2.0643]
[1745830130110,23.3,151.32,151.25,2.0643]
[1745830130410,6.607,151.31,151.25,2.0643]
[1745830130805,23.3,151.32,151.25,2.0643]
[1745830131011,29.9066,151.32,151.28,6.6078]
[1745830132711,29.9066,151.32,151.25,2.0643]
[1745830132712,11.29940757,151.29,151.26,6.6087]
[1745830132909,11.29940757,151.31,151.22,17.40540757]
[1745830133211,17.90630757,151.31,151.27,6.6083]
[1745830133610,11.29940757,151.31,151.22,17.40540757]
[1745830133810,23.3,151.32,151.24,11.29940757]
[1745830134311,29.9066,151.32,151.24,11.29940757]
[1745830134712,17.90480757,151.35,151.31,6.6068]
[1745830135009,23.3,151.34,151.26,11.29940757]
[1745830135912,23.3,151.34,151.32,6.6061]
[1745830137612,23.3,151.34,151.33,6.6059]
[1745830138114,23.3,151.34,151.26,11.29940757]
[1745830138514,23.3,151.34,151.32,6.6061]
[1745830138813,29.9056,151.34,151.26,11.29940757]
[1745830139313,29.9056,151.34,151.31,6.6066]
[1745830141418,23.3,151.34,151.32,6.6061]
[1745830142116,29.9055,151.34,151.32,6.6061]
[1745830143418,29.9055,151.34,151.31,6.6066]
[1745830143714,29.9055,151.34,151.27,1.9393]
[1745830144619,23.3,151.34,151.27,1.9393]
[1745830145115,29.9055,151.34,151.27,1.9393]
[1745830146518,29.9055,151.34,151.31,6.6064]
[1745830146915,23.3,151.34,151.33,6.6059]
[1745830147112,23.3,151.37,151.3,11.29940757]
[1745830147519,23.3,151.37,151.34,6.6052]
[1745830147816,23.3,151.37,151.3,11.29940757]
[1745830148016,23.3,151.37,151.29,23.3]
[1745830148216,11.29940757,151.36,151.29,23.3]
[1745830148419,11.29940757,151.34,151.29,23.3]
[1745830149119,11.29940757,151.34,151.28,2.0803]
[1745830149513,6.6061,151.33,151.3,6.607]
[1745830150616,6.6064,151.32,151.29,6.6075]
[1745830150809,23.3,151.33,151.26,23.3]
[1745830151319,6.6066,151.32,151.28,6.6081]
[1745830151620,11.29940757,151.32,151.26,23.3]
[1745830151811,11.29940757,151.3,151.24,1.9263]
[1745830152013,17.90700757,151.3,151.26,6.6087]
[1745830152316,11.29940757,151.3,151.26,6.6087]
[1745830152518,6.6079,151.29,151.26,6.6087]
[1745830152712,11.29940757,151.3,151.26,6.6087]
[1745830152917,11.29940757,151.3,151.27,6.6085]
[1745830153420,17.90680757,151.3,151.27,6.6085]
[1745830153620,11.29940757,151.3,151.27,6.6085]
[1745830153821,11.29940757,151.3,151.26,6.6087]
[1745830154118,6.6079,151.29,151.26,6.6087]
[1745830156622,17.90680757,151.3,151.27,6.6085]
[1745830157020,11.29940757,151.3,151.27,6.6085]
[1745830157917,11.29940757,151.28,151.2,23.3]
[1745830158124,11.29940757,151.26,151.2,23.3]
[1745830158418,17.90860757,151.26,151.23,6.61]
[1745830158822,11.29940757,151.26,151.2,23.3]
[1745830159524,17.90870757,151.26,151.22,6.6104]
[1745830159822,17.90870757,151.26,151.18,3.9979]
[1745830160020,11.29940757,151.26,151.24,6.6096]
[1745830160221,11.29940757,151.26,151.18,15.29730757]
[1745830160623,11.29940757,151.26,151.23,6.6101]
[1745830160825,11.29940757,151.26,151.18,15.29730757]
[1745830161020,11.29940757,151.26,151.18,3.9979]
[1745830161323,11.29940757,151.24,151.21,6.6109]
[1745830162120,11.29940757,151.24,151.2,6.6114]
[1745830162420,29.0411,151.27,151.2,6.6114]
[1745830162620,11.29940757,151.22,151.17,23.3]
[1745830162817,11.29940757,151.22,151.14,498.98]
[1745830163126,11.29940757,151.22,151.19,6.6117]
[1745830163424,23.3,151.23,151.16,11.29940757]
[1745830163625,29.9104,151.23,151.16,11.29940757]
[1745830163828,23.3,151.23,151.16,11.29940757]
[1745830164124,34.59940757,151.26,151.23,6.61]
[1745830164525,34.59940757,151.26,151.18,34.59940757]
[1745830164723,41.20870757,151.26,151.22,6.6105]
[1745830165027,34.59940757,151.26,151.22,6.6105]
[1745830165229,6.6096,151.25,151.21,6.611]
[1745830165626,6.6096,151.25,151.18,23.3]
[1745830165822,6.6096,151.25,151.21,6.6107]
[1745830166329,11.29940757,151.24,151.2,6.6115]
[1745830167027,17.90970757,151.24,151.2,6.6115]
[1745830167231,11.29940757,151.24,151.2,6.6115]
[1745830167629,6.6106,151.23,151.2,6.6115]
[1745830167826,11.29940757,151.24,151.16,11.29940757]
[1745830168328,11.29940757,151.24,151.21,6.6109]
[1745830168929,17.90960757,151.24,151.21,6.6109]
[1745830169435,6.6109,151.22,151.15,23.3]
[1745830169932,6.6109,151.22,151.19,6.6117]
[1745830170429,11.29940757,151.24,151.15,23.3]
[1745830171126,11.29940757,151.24,151.19,6.6117]
[1745830171335,6.6105,151.23,151.19,6.6117]
[1745830171536,6.6105,151.23,151.15,23.3]
[1745830171827,6.6105,151.23,151.2,6.6114]
[1745830172027,17.90950757,151.24,151.2,6.6114]
[1745830172227,17.90950757,151.24,151.16,11.29940757]
[1745830173133,6.6103,151.23,151.16,11.29940757]
[1745830173433,11.29940757,151.24,151.21,6.6111]
[1745830173635,6.6104,151.23,151.15,23.3]
[1745830174638,6.6104,151.23,151.2,6.6113]
[1745830175436,34.59940757,151.22,151.15,23.3]
[1745830175833,11.29940757,151.2,151.15,23.3]
[1745830176038,17.91120757,151.2,151.17,6.6126]
[1745830179540,34.59940757,151.22,151.12,53.61820757]
[1745830180739,23.3,151.22,151.14,11.29940757]
[1745830181342,23.3,151.22,151.2,6.6112]
[1745830182740,34.59940757,151.22,151.09,13.2328]
[1745830182946,11.29940757,151.19,151.11,23.32]
[1745830183244,29.9108,151.22,151.18,6.6122]
[1745830184949,23.3,151.22,151.19,6.6119]
[1745830186144,29.9108,151.22,151.19,6.6119]
[1745830187148,6.6114,151.21,151.18,6.6123]
[1745830187347,11.29940757,151.21,151.12,11.29940757]
[1745830187546,11.29940757,151.19,151.11,23.32]
[1745830188943,11.29940757,151.19,151.16,6.6132]
[1745830189541,12.4635,151.21,151.17,6.6129]
[1745830189542,23.76290757,151.21,151.17,6.6129]
[1745830189746,17.15150757,151.21,151.12,11.29940757]
[1745830190245,17.15150757,151.21,151.18,6.6123]
[1745830191747,17.15150757,151.21,151.19,6.612]
[1745830192650,5.8521,151.21,151.2,6.6116]
[1745830192942,5.8521,151.21,151.12,11.29940757]
[1745830194148,5.8521,151.21,151.19,6.6118]
[1745830196347,34.61940757,151.22,151.19,6.6118]
[1745830196553,34.61940757,151.22,151.2,6.6115]
[1745830196744,11.29940757,151.24,151.15,23.38]
[1745830197051,34.67940757,151.24,151.16,17.28830757]
[1745830197653,41.28950757,151.24,151.16,17.28830757]
[1745830197855,34.67940757,151.24,151.16,17.28830757]
[1745830198053,34.67940757,151.24,151.22,6.6107]
[1745830198256,34.67940757,151.24,151.16,17.28830757]
[1745830198755,34.67940757,151.24,151.16,5.9889]